bitfinex-derivatives/quotes_ETHF0:USTF0_20250918
["timestamp","ask_amount","ask_price","bid_price","bid_amount"]
[1758213978777,1.1147,4638.0,4637.9,3.2078]
[1758213978986,1.33625537,4638.0,4637.9,3.2078]
[1758213979290,1.79625265,4638.0,4637.9,3.2078]
[1758213982885,2.02125265,4638.0,4637.9,3.2078]
[1758213983184,1.79625265,4638.0,4637.9,3.2078]
[1758213983382,2.02125265,4638.0,4637.9,3.2078]
[1758213983586,2.02125265,4638.0,4637.9,3.4703]
[1758213984482,1.79625265,4638.0,4637.9,3.2078]
[1758213984682,2.02125265,4638.0,4637.9,3.2078]
[1758213985677,2.02148459,4638.0,4637.9,3.2078]
[1758213986490,1.1147,4637.5,4637.4,3.2078]
[1758213986786,1.80440075,4637.5,4637.4,3.2078]
[1758213987185,1.80432968,4637.5,4637.4,3.2078]
[1758213987488,1.80431434,4637.5,4637.4,3.2078]
[1758213989988,2.02931434,4637.5,4637.4,3.2078]
[1758213990992,0.1589,4637.0,4636.9,3.2293]
[1758213991189,1.33648731,4637.0,4636.9,3.4918]
[1758213991689,1.81389761,4637.0,4636.9,3.4918]
[1758213991888,1.81389761,4637.0,4636.9,3.4703]
[1758213993192,2.03889761,4637.0,4636.9,3.2078]
[1758213994388,2.03889761,4637.0,4636.9,3.4703]
[1758213995198,0.1589,4636.5,4636.4,3.2293]
[1758213995385,1.1147,4636.5,4636.4,3.5087]
[1758213995688,1.81389761,4636.5,4636.4,3.5087]
[1758213995891,1.81389761,4636.5,4636.4,4.1686]
[1758213996393,2.03889761,4636.5,4636.4,4.1686]
[1758213996790,2.03889761,4636.5,4636.4,3.7764]
[1758213996993,2.03889761,4636.5,4636.4,4.1686]
[1758213997296,2.03889761,4636.5,4636.4,3.5087]
[1758213997592,2.03834987,4636.5,4636.4,4.1686]
[1758213997894,2.03834987,4636.5,4636.4,4.1471]
[1758213998090,0.22123957,4636.5,4636.4,4.1471]
[1758213998391,0.206,4636.5,4636.4,4.1471]
[1758213999384,0.4015,4637.5,4637.4,0.9393]
[1758213999592,1.32452739,4637.5,4637.4,0.9393]
[1758214000493,0.92302739,4637.5,4637.4,0.9393]
[1758214001595,0.8477116,4637.5,4637.4,0.9393]
[1758214001896,0.6265,4637.5,4637.4,0.9393]
[1758214002901,35.3465,4637.7,4637.5,0.3922]
[1758214003095,0.225,4637.6,4637.5,1.0446]
[1758214003596,0.6265,4637.6,4637.5,0.9393]
[1758214003998,0.9021,4637.6,4637.5,0.9393]
[1758214004203,1.12189906,4637.6,4637.5,0.9393]
[1758214004401,0.89689906,4637.6,4637.5,0.9393]
[1758214004594,0.6771,4637.6,4637.5,0.9393]
[1758214004794,0.9021,4637.6,4637.5,0.9393]
[1758214005300,1.12196515,4637.6,4637.5,0.9393]
[1758214005500,1.38516515,4637.6,4637.5,0.5471]
[1758214008400,0.9403,4637.4,4637.3,3.2078]
[1758214008599,1.16027629,4637.4,4637.3,3.2078]
[1758214009404,1.6432433,4637.4,4637.3,3.2078]
[1758214009697,1.8672433,4637.4,4637.3,3.7549]
[1758214009903,1.8672433,4637.4,4637.3,3.4872]
[1758214010501,1.8672433,4637.4,4637.3,3.7549]
[1758214012598,1.8672433,4637.4,4637.3,3.2078]
[1758214014211,1.8672433,4637.4,4637.3,3.4872]
[1758214015308,1.8672433,4637.4,4637.3,3.2078]
[1758214015812,1.86759862,4637.4,4637.3,3.2078]
[1758214017312,1.86777052,4637.4,4637.3,3.2078]
[1758214018009,1.64377052,4637.4,4637.3,3.2078]
[1758214018210,1.86777052,4637.4,4637.3,4.1449]
[1758214018505,0.44414883,4637.4,4637.3,4.1449]
[1758214018705,0.224,4637.4,4637.3,4.1449]
[1758214018912,0.44416112,4637.4,4637.3,4.1449]
[1758214019908,0.86836112,4637.4,4637.3,4.1449]
[1758214020307,1.41206112,4637.4,4637.3,3.7549]
[1758214020513,1.8961364,4637.4,4637.3,3.2078]
[1758214020920,1.8961364,4637.4,4637.3,3.4705]
[1758214021112,0.44416112,4637.4,4637.3,4.1449]
[1758214021518,0.224,4637.4,4637.3,4.1449]
[1758214021919,0.92817971,4637.4,4637.3,4.1449]
[1758214022320,0.44414509,4637.4,4637.3,4.1449]
[1758214023017,0.92818252,4637.4,4637.3,4.1449]
[1758214023216,1.35238252,4637.4,4637.3,4.1449]
[1758214024720,1.0735,4638.5,4638.4,0.9371]
[1758214024919,0.9137,4638.5,4638.4,4.1449]
[1758214025221,0.224,4638.5,4638.4,4.1449]
[1758214025421,0.45,4639.4,4638.4,4.1449]
[1758214025422,0.6832,4638.9,4638.8,0.5413]
[1758214025619,0.9072,4638.9,4638.8,0.5413]
[1758214025920,1.1691,4638.9,4638.8,0.5413]
[1758214026520,1.1691,4638.9,4638.8,0.9261]
[1758214027420,0.6482,4638.9,4638.8,0.9261]
[1758214027624,0.224,4638.9,4638.8,0.9261]
[1758214028626,0.6358,4638.9,4638.8,0.9261]
[1758214029217,0.8948,4638.9,4638.8,0.9261]
[1758214029428,0.6708,4638.9,4638.8,0.9261]
[1758214029628,0.8948,4638.9,4638.8,0.9261]
[1758214033529,0.6708,4639.3,4639.2,0.5413]
[1758214033727,1.1567,4639.3,4639.2,3.7491]
[1758214034528,0.9327,4639.3,4639.2,3.7491]
[1758214034727,1.1567,4639.3,4639.2,3.7491]
[1758214035329,1.1567,4639.3,4639.2,3.2078]
[1758214036126,1.1567,4639.3,4639.2,3.4787]
[1758214036628,1.36882863,4639.3,4639.2,3.4787]
[1758214036834,1.85334822,4639.3,4639.2,3.4787]
[1758214037133,1.85334822,4639.3,4639.2,3.7491]
[1758214038334,1.62934822,4639.3,4639.2,3.7491]
[1758214038535,1.85334822,4639.3,4639.2,3.7491]
[1758214041130,0.69664822,4639.3,4639.2,4.1339]
[1758214041331,0.92064822,4639.3,4639.2,4.1339]
[1758214041529,0.69664822,4639.3,4639.2,4.1339]
[1758214041833,0.92064822,4639.3,4639.2,4.1339]
[1758214043133,1.33244822,4639.3,4639.2,4.1339]
[1758214044227,1.59144822,4639.3,4639.2,4.1339]
[1758214044931,1.85334822,4639.3,4639.2,3.7491]
[1758214045137,1.85334822,4639.3,4639.2,3.4787]
[1758214045730,1.85334822,4639.3,4639.2,3.7491]
[1758214046535,1.85334822,4639.3,4639.2,3.4787]
[1758214046738,1.85334822,4639.3,4639.0,0.0215]
[1758214046937,0.9327,4639.1,4639.0,0.0215]
[1758214047228,0.9327,4639.1,4638.6,3.2078]
[1758214047229,0.4177,4639.0,4638.9,0.2709]
[1758214047427,1.78804822,4639.0,4638.9,0.2709]
[1758214051239,1.57591959,4639.0,4638.9,0.2709]
[1758214051440,1.78842911,4639.0,4638.9,0.2709]
[1758214053733,1.78842911,4639.0,4638.7,0.0215]
[1758214053935,1.78842911,4639.0,4638.7,0.2924]
[1758214053936,0.9327,4638.8,4638.7,0.2924]
[1758214054231,1.62972911,4638.8,4638.7,0.2709]
[1758214054533,1.62972911,4638.8,4638.0,3.2078]
[1758214054534,0.9327,4638.1,4638.0,3.2078]
[1758214054841,1.0914,4637.5,4637.4,3.2078]
[1758214055040,1.78842911,4637.5,4637.4,3.2078]
[1758214055430,2.01242911,4637.5,4637.4,3.4787]
[1758214056238,2.01242911,4637.5,4637.4,3.2078]
[1758214056836,1.78842911,4637.5,4637.4,3.2078]
[1758214057038,1.36782911,4637.5,4637.4,4.1125]
[1758214057238,0.3855,4638.0,4637.4,8.1125]
[1758214057540,1.0537,4638.0,4637.9,3.7359]
[1758214057745,1.9954537,4638.0,4637.9,3.7359]
[1758214057936,1.9954537,4638.0,4637.9,4.1125]
[1758214059031,1.7714537,4638.0,4637.9,4.1125]
[1758214059239,1.9954537,4638.0,4637.9,4.1125]
[1758214059841,1.9954537,4638.0,4637.9,3.7359]
[1758214060344,1.9954537,4638.0,4637.9,4.1125]
[1758214060535,1.5844537,4638.0,4637.9,4.1125]
[1758214060731,1.7422537,4638.0,4637.9,4.1125]
[1758214061338,1.9954537,4638.0,4637.9,3.7359]
[1758214061938,1.9954537,4638.0,4637.9,3.2078]
[1758214063248,1.9954537,4638.0,4637.9,3.4699]
[1758214063642,1.9954537,4638.0,4637.9,3.2078]
[1758214065047,1.7714537,4638.0,4637.9,4.1125]
[1758214065242,0.72927011,4638.0,4637.9,4.1125]
[1758214065438,0.224,4638.0,4637.9,4.1125]
[1758214065935,0.8959,4638.4,4638.3,0.5281]
[1758214066140,1.84655357,4638.4,4638.3,0.5281]
[1758214066939,1.84656138,4638.4,4638.3,0.5281]
[1758214071942,0.1578,4638.0,4637.9,3.4699]
[1758214072138,1.2777,4638.0,4637.9,3.2078]
[1758214072342,1.78948982,4638.0,4637.9,3.2078]
[1758214072540,2.00461142,4638.0,4637.9,3.2078]
[1758214073944,2.00461142,4638.0,4637.5,0.0215]
[1758214074140,0.5387,4637.6,4637.5,0.0215]
[1758214074346,1.64841142,4637.6,4637.5,0.0215]
[1758214074546,0.4333,4637.5,4637.4,3.2078]
[1758214074746,2.03361142,4637.5,4637.4,3.2078]
[1758214076655,2.03361142,4637.5,4637.4,3.4702]
[1758214078050,2.03361142,4637.5,4637.4,3.2078]
[1758214083059,2.03361142,4637.5,4637.4,3.4702]
[1758214083350,2.03361142,4637.5,4637.4,3.7363]
[1758214083555,2.03361142,4637.5,4637.4,4.104]
[1758214084551,1.80961142,4637.5,4637.4,4.104]
[1758214084752,2.03361142,4637.5,4637.4,4.104]
[1758214084951,2.03361142,4637.5,4637.4,3.2078]
[1758214085152,2.03361142,4637.5,4637.4,4.104]
[1758214085454,1.80961142,4637.5,4637.4,4.104]
[1758214085656,0.72691142,4637.5,4637.4,4.104]
[1758214085957,0.72691142,4637.5,4637.4,8.31964]
[1758214086152,0.1587,4638.5,4637.4,8.49191]
[1758214086354,0.8182,4638.5,4638.4,3.2078]
[1758214086556,1.2574585,4638.5,4638.4,3.2078]
[1758214087057,1.5102585,4638.5,4638.4,3.2078]
[1758214088463,5.7258485,4638.5,4638.4,3.2078]
[1758214088856,5.5102585,4638.5,4638.4,3.2078]
[1758214089663,0.9123,4637.9,4637.8,3.2078]
[1758214089958,0.9123,4637.9,4634.9,0.97029]
[1758214089959,0.9123,4637.1,4637.0,3.2078]
[1758214090158,1.3515585,4637.1,4637.0,3.2078]
[1758214091849,0.2152585,4637.1,4637.0,3.2078]
[1758214092159,0.224,4637.1,4637.0,7.2078]
[1758214092663,0.6069,4637.1,4637.0,7.2078]
[1758214093256,0.224,4637.1,4637.0,7.2078]
[1758214094361,0.224,4637.6,4637.1,0.38793]
[1758214094557,0.224,4637.6,4637.5,3.2078]
[1758214095561,0.224,4637.8,4637.5,3.2078]
[1758214096359,0.9123,4637.6,4637.5,3.2078]
[1758214096854,1.12832128,4637.6,4637.5,3.2078]
[1758214098163,1.63928817,4637.6,4637.5,3.2078]
[1758214098860,1.63928817,4637.6,4636.2,0.224]
[1758214098861,0.9123,4637.1,4637.0,3.2078]
[1758214099057,1.86328817,4637.1,4637.0,3.2078]
[1758214102554,1.86328817,4637.1,4636.5,3.2078]
[1758214102761,0.6595,4636.6,4636.5,3.2078]
[1758214102962,1.38648817,4636.6,4636.5,3.2078]
[1758214103267,1.86328817,4636.6,4636.5,3.2078]
[1758214104965,1.86328817,4636.6,4635.8,3.2078]
[1758214104966,5.86328817,4636.6,4635.8,3.2078]
[1758214105161,0.9123,4635.9,4635.8,3.2078]
[1758214105466,0.9123,4635.4,4635.3,3.2078]
[1758214105665,1.63928817,4635.4,4635.3,3.2078]
[1758214108063,1.86328817,4635.4,4635.3,3.2078]
[1758214108270,1.35232128,4635.4,4635.3,3.2078]
[1758214108973,1.86241589,4635.4,4635.3,3.2078]
[1758214109367,0.155,4635.0,4634.8,3.2078]
[1758214109566,1.63825849,4634.9,4634.8,3.2078]
[1758214110772,1.09952128,4634.9,4634.8,3.2078]
[1758214111372,1.1363,4634.9,4634.8,3.2078]
[1758214111573,1.371646,4634.9,4634.8,3.2078]
[1758214111975,1.1363,4634.9,4634.8,3.2078]
[1758214114378,0.9123,4634.4,4634.3,3.2078]
[1758214114572,1.1363,4634.4,4634.3,3.2078]
[1758214117580,0.919,4633.9,4633.8,3.2078]
[1758214117777,1.143,4633.9,4633.8,3.2078]
[1758214118080,0.158,4633.5,4633.3,3.2078]
[1758214118274,0.8755,4633.4,4633.3,3.2078]
[1758214118983,1.143,4633.4,4633.3,3.2078]
[1758214121177,0.6038,4632.9,4632.8,3.2078]
[1758214123879,0.8755,4632.9,4632.8,3.2078]
[1758214124791,1.143,4632.9,4632.8,3.2078]
[1758214125692,1.38178845,4632.9,4632.8,3.2078]
[1758214127193,0.89028845,4632.9,4632.8,3.2078]
[1758214127394,1.11428845,4632.9,4632.8,3.2078]
[1758214127894,1.38178845,4632.9,4632.8,3.2078]
[1758214130099,1.11428845,4632.9,4632.8,3.2078]
[1758214130297,1.62047736,4632.9,4632.8,3.2078]
[1758214130796,1.88797736,4632.9,4632.8,3.2078]
[1758214130996,0.84258845,4632.9,4632.8,3.2078]
[1758214131393,1.62063701,4632.9,4632.8,3.2078]
[1758214131896,1.88813701,4632.9,4632.8,3.2078]
[1758214132094,0.919,4632.4,4632.3,3.2078]
[1758214132397,0.919,4632.4,4631.8,3.2078]
[1758214132398,0.919,4631.9,4631.8,3.2078]
[1758214132600,1.88813701,4631.9,4631.8,3.2078]
[1758214133302,0.919,4631.4,4631.3,0.02159244]
[1758214133503,1.66413701,4631.4,4631.3,0.02159244]
[1758214136100,1.88813701,4631.4,4631.3,0.02159244]
[1758214141702,5.88813701,4631.4,4630.7,3.2078]
[1758214142008,0.9202,4630.3,4630.2,3.2078]
[1758214142207,1.88933701,4630.3,4630.2,3.2078]
[1758214143405,0.655,4629.9,4629.7,3.2078]
[1758214143715,1.62413701,4629.8,4629.7,3.2078]
[1758214144211,1.88933701,4629.8,4629.7,3.2078]
[1758214144409,0.74513701,4629.8,4629.7,7.2078]
[1758214144613,0.45978845,4629.8,4629.7,7.2078]
[1758214145008,0.23878845,4629.8,4629.7,7.2078]
[1758214145511,0.1495,4630.5,4629.7,7.59635]
[1758214145711,0.224,4630.4,4629.7,0.38855]
[1758214145904,0.224,4630.4,4630.3,3.2078]
[1758214146104,0.3722,4630.4,4630.3,3.2078]
[1758214146311,0.5962,4630.4,4630.3,3.2078]
[1758214146704,0.3722,4630.4,4630.3,3.2078]
[1758214146904,0.5962,4630.4,4630.3,3.2078]
[1758214147105,1.10301581,4630.4,4630.3,3.2078]
[1758214147507,0.87901581,4630.4,4630.3,3.2078]
[1758214147707,1.10301581,4630.4,4630.3,3.2078]
[1758214147907,0.87901581,4630.4,4630.3,3.2078]
[1758214151111,0.3722,4630.4,4630.3,3.2078]
[1758214151314,0.3722,4630.4,4630.3,7.2078]
[1758214152118,0.87807108,4630.4,4630.3,7.2078]
[1758214153814,1.13357108,4630.4,4630.3,3.2078]
[1758214154119,1.38937108,4630.4,4630.3,3.2078]
[1758214155617,1.13357108,4630.4,4630.3,3.2078]
[1758214155820,0.87807108,4630.4,4630.3,3.2078]
[1758214157622,1.10218857,4630.4,4630.3,3.2078]
[1758214157811,1.10218857,4630.4,4630.3,7.59631]
[1758214158011,0.3722,4631.1,4630.4,0.3885]
[1758214158318,0.5217,4631.0,4630.9,3.2078]
[1758214158715,1.50829485,4631.0,4630.9,3.2078]
[1758214158917,0.74585763,4631.0,4630.9,3.2078]
[1758214159121,0.5217,4631.0,4630.9,3.2078]
[1758214161123,0.5217,4631.0,4630.9,7.2078]
[1758214161526,0.1495,4631.0,4630.9,7.2078]
[1758214161916,0.1495,4631.0,4630.9,7.4318]
[1758214163626,0.5217,4631.0,4630.9,7.4318]
[1758214163826,0.1495,4631.0,4630.9,7.4318]
[1758214164226,0.3722,4631.4,4631.1,0.38843]
[1758214164529,0.3722,4631.4,4631.2,0.224]
[1758214165232,0.158,4631.5,4631.2,0.224]
[1758214165432,0.158,4631.5,4631.4,3.2078]
[1758214166020,0.5302,4631.5,4631.4,3.2078]
[1758214167129,0.5302,4631.5,4631.4,3.4318]
[1758214168327,0.5302,4631.5,4631.4,3.2078]
[1758214171536,1.0415,4631.5,4631.4,3.2078]
[1758214171841,0.5302,4631.5,4631.4,3.2078]
[1758214172138,0.5302,4631.5,4631.4,3.59621]
[1758214172633,0.5302,4631.5,4631.4,3.2078]
[1758214173140,0.5302,4631.5,4631.4,3.59621]
[1758214174540,0.3722,4631.8,4631.7,0.38837]
[1758214174741,0.3722,4631.8,4631.7,0.61137]
[1758214175034,0.5217,4632.0,4631.9,0.38837]
[1758214175233,0.5217,4632.0,4631.9,3.81917]
[1758214175535,0.5217,4632.0,4631.9,7.81917]
[1758214175841,0.1455,4632.5,4631.9,7.81917]
[1758214175842,0.3762,4632.3,4632.0,0.38836]
[1758214176039,0.3762,4632.4,4632.1,0.61135]
[1758214176240,0.1455,4632.5,4632.1,0.61135]
[1758214176241,0.1455,4632.5,4632.2,0.38834]
[1758214176433,0.5217,4632.5,4632.4,3.2078]
[1758214176638,0.1455,4633.0,4632.9,0.3021]
[1758214176830,0.1569,4634.0,4632.9,3.7329]
[1758214177139,0.6423,4633.5,4633.4,3.3229]
[1758214178740,1.0185,4633.5,4633.4,3.3229]
[1758214179140,1.0185,4633.5,4633.4,3.438]
[1758214180251,0.1569,4634.5,4633.4,3.438]
[1758214180252,0.1569,4634.5,4634.0,0.3772]
[1758214180436,0.6537,4634.5,4634.4,3.2078]
[1758214180832,0.3995,4634.5,4634.4,4.1115]
[1758214181034,0.2426,4634.5,4634.4,4.1115]
[1758214181239,0.6537,4634.5,4634.4,3.7343]
[1758214182341,1.0299,4634.5,4634.4,3.7343]
[1758214182644,1.0299,4634.5,4634.4,3.2078]
[1758214183231,1.0299,4634.5,4634.4,3.4696]
[1758214183645,1.0299,4634.5,4634.4,3.2078]
[1758214188545,1.0299,4634.5,4634.4,3.7343]
[1758214189143,1.0299,4634.5,4634.4,3.2078]
[1758214190947,1.0299,4634.5,4634.4,3.4696]
[1758214191248,1.0299,4634.5,4634.4,4.1115]
[1758214191543,1.0299,4634.5,4634.4,3.7343]
[1758214193048,1.0299,4634.5,4634.4,3.4696]
[1758214195045,0.5331,4634.5,4634.4,3.7343]
[1758214195351,0.3762,4634.5,4634.4,4.1301]
[1758214195750,0.6201,4634.5,4634.4,4.1301]
[1758214196451,0.223,4634.9,4634.5,0.3958]
[1758214196636,1.10836176,4634.8,4634.7,0.6537]
[1758214196840,1.35566176,4634.8,4634.7,0.91]
[1758214197550,1.35566176,4634.8,4634.7,0.5142]
[1758214198250,1.56797379,4634.8,4634.7,0.5142]
[1758214199047,1.32067379,4634.8,4634.7,0.91]
[1758214199251,0.6054,4634.8,4634.7,0.91]
[1758214200252,0.8527,4634.8,4634.7,0.91]
[1758214200453,0.391,4634.5,4634.4,3.2078]
[1758214200647,0.9998,4634.5,4634.4,3.2078]
[1758214200950,1.71581576,4634.5,4634.4,3.2078]
[1758214202854,1.71581576,4634.5,4634.4,3.4641]
[1758214203455,1.71581576,4634.5,4634.4,3.2078]
[1758214203950,5.71581576,4634.5,4634.2,0.0215]
[1758214204157,0.8527,4634.3,4634.2,0.0215]
[1758214204356,1.56871576,4634.3,4634.2,0.0215]
[1758214204556,1.56871576,4634.3,4633.4,3.2078]
[1758214204557,0.9998,4633.5,4633.4,3.2078]
[1758214204752,1.93881576,4633.5,4633.4,3.2078]
[1758214204955,0.9998,4633.0,4632.9,3.2078]
[1758214205258,0.8527,4632.3,4632.2,3.4641]
[1758214205457,1.35625837,4632.3,4632.2,3.4641]
[1758214205956,1.56926751,4632.3,4632.2,3.4641]
[1758214206255,1.56918849,4632.3,4632.2,3.4641]
[1758214207051,1.56918849,4632.3,4632.2,3.2078]
[1758214207855,5.56918849,4632.3,4632.0,0.0215]
[1758214208055,0.8864,4632.1,4632.0,0.0215]
[1758214208249,1.60276567,4632.1,4632.0,0.0215]
[1758214209655,1.21066567,4632.1,4631.7,3.2078]
[1758214209855,0.8864,4631.8,4631.7,3.4616]
[1758214210158,1.1094,4631.8,4631.7,3.4616]
[1758214210355,1.1094,4631.8,4631.7,3.2078]
[1758214210758,1.1094,4631.8,4631.7,3.4616]
[1758214211461,1.1094,4631.8,4631.7,3.709]
[1758214212558,0.8864,4631.8,4631.7,3.709]
[1758214212765,1.1094,4631.8,4631.7,3.709]
[1758214215471,1.1094,4631.8,4631.7,4.1058]
[1758214218370,0.223,4631.8,4631.7,4.1058]
[1758214218667,0.6151,4631.8,4631.7,4.1058]
[1758214218868,0.8677,4631.8,4631.7,4.1058]
[1758214219169,0.6447,4631.8,4631.7,4.1058]
[1758214219366,0.3921,4632.4,4632.3,0.6442]
[1758214219573,34.972,4632.6,4632.3,4.1058]
[1758214219769,0.223,4632.8,4632.7,0.5012]
[1758214219966,0.223,4632.8,4632.7,0.898]
[1758214220968,1.1094,4632.8,4632.7,0.5012]
[1758214221273,1.1094,4632.8,4632.3,3.6046]
[1758214221474,0.8864,4632.7,4632.6,0.5012]
[1758214221768,0.223,4632.8,4632.7,0.3968]
[1758214221962,0.8677,4632.8,4632.7,0.898]
[1758214222869,0.3921,4633.0,4632.7,0.5012]
[1758214223066,0.223,4632.8,4632.7,0.5012]
[1758214223269,0.223,4632.8,4632.7,3.709]
[1758214223666,0.223,4632.8,4632.7,4.1058]
[1758214224072,0.8677,4632.8,4632.7,4.1058]
[1758214224777,1.1094,4632.8,4632.7,4.1058]
[1758214225166,1.1094,4632.8,4632.7,3.709]
[1758214225372,1.1094,4632.8,4632.7,3.2078]
[1758214225673,1.61340378,4632.8,4632.7,3.2078]
[1758214226071,1.61340378,4632.8,4632.7,4.1058]
[1758214226775,1.61340378,4632.8,4632.7,3.709]
[1758214227176,1.37170378,4632.8,4632.7,4.1058]
[1758214228279,1.61340378,4632.8,4632.7,3.709]
[1758214228980,1.37170378,4632.8,4632.7,4.1058]
[1758214229477,0.72700378,4632.8,4632.7,4.1058]
[1758214230075,1.11910378,4632.8,4632.7,4.1058]
[1758214230275,1.37170378,4632.8,4632.7,4.1058]
[1758214230781,1.14870378,4632.8,4632.7,4.1058]
[1758214231078,1.37170378,4632.8,4632.7,4.1058]
[1758214231768,0.8677,4632.8,4632.7,4.1058]
[1758214232172,1.08151612,4632.8,4632.7,4.1058]
[1758214232790,0.8677,4632.8,4632.7,4.1058]
[1758214233282,0.72882361,4632.8,4632.7,4.1058]
[1758214233777,1.12092361,4632.8,4632.7,4.1058]
[1758214233973,1.37352361,4632.8,4632.7,4.1058]
[1758214235476,1.61522361,4632.8,4632.7,4.1058]
[1758214236178,0.72882361,4632.8,4632.7,4.1058]
[1758214236780,0.223,4632.8,4632.7,4.1058]
[1758214237082,0.1471,4633.5,4632.7,3.709]
[1758214237380,1.78654929,4633.4,4633.3,0.259]
[1758214238176,1.56354929,4633.4,4633.3,0.259]
[1758214238374,1.78654929,4633.4,4633.3,0.259]
[1758214238781,1.56354929,4633.4,4633.3,0.8909]
[1758214238981,1.78654929,4633.4,4633.3,0.8909]
[1758214239177,1.78654929,4633.4,4633.3,0.507]
[1758214239780,1.78654929,4633.4,4633.3,0.8909]
[1758214239981,0.223,4633.4,4633.3,0.8909]
[1758214240874,0.5749,4633.4,4633.3,0.8909]
[1758214241279,0.223,4633.4,4633.3,0.8909]
[1758214241881,0.72918016,4633.4,4633.3,0.8909]
[1758214242281,0.72918016,4633.4,4633.3,0.259]
[1758214242282,1.57268016,4633.4,4633.3,0.259]
[1758214242589,0.8435,4633.3,4633.2,3.2078]
[1758214242789,1.56515516,4633.3,4633.2,3.4668]
[1758214243489,1.56515516,4633.3,4633.2,3.7148]
[1758214243682,0.223,4633.4,4633.3,0.3839]
[1758214243877,0.223,4633.4,4633.3,0.8909]
[1758214244277,0.5749,4633.4,4633.3,0.8909]
[1758214245088,0.223,4633.4,4633.3,0.8909]
[1758214245682,0.3519,4633.7,4633.3,0.8909]
[1758214245883,1.29671452,4633.6,4633.4,0.3839]
[1758214246083,0.72186674,4633.5,4633.4,0.8909]
[1758214246485,0.94486674,4633.5,4633.4,0.8909]
[1758214247090,0.72186674,4633.5,4633.4,0.8909]
[1758214247392,0.94486674,4633.5,4633.4,0.8909]
[1758214247584,0.72186674,4633.5,4633.4,0.8909]
[1758214247882,1.29676674,4633.5,4633.4,0.8909]
[1758214249495,1.93176674,4633.5,4633.4,0.8909]
[1758214250193,1.53836674,4633.5,4633.4,0.8909]
[1758214251781,1.93176674,4633.5,4633.4,0.8909]
[1758214251981,1.70876674,4633.5,4633.2,3.2078]
[1758214252191,0.8435,4633.3,4633.2,3.4668]
[1758214252389,1.56536674,4633.3,4633.2,3.4668]
[1758214252693,1.56536674,4633.3,4633.2,3.7148]
[1758214253691,1.56536674,4633.3,4633.2,4.09]
[1758214253892,1.78836674,4633.3,4633.2,4.09]
[1758214254088,1.78836674,4633.3,4633.2,3.7148]
[1758214255394,1.78836674,4633.3,4633.2,4.09]
[1758214256895,1.78836674,4633.3,4633.2,3.7148]
[1758214257083,1.28209849,4633.3,4633.2,3.7148]
[1758214257391,1.78882539,4633.3,4633.2,3.7148]
[1758214257696,1.78882539,4633.3,4633.2,3.2078]
[1758214258193,1.78882539,4633.3,4633.2,3.4654]
[1758214259095,1.78882539,4633.3,4633.2,4.0742]
[1758214259797,1.78882539,4633.3,4633.2,3.699]
[1758214260098,1.78882539,4633.3,4633.2,3.2078]
[1758214260395,1.78882539,4633.3,4633.2,4.0742]
[1758214260796,1.78901249,4633.3,4633.2,4.0742]
[1758214261198,1.56601249,4633.3,4633.2,3.699]
[1758214261398,1.78901249,4633.3,4633.2,3.699]
[1758214261892,1.56601249,4633.3,4633.2,3.699]
[1758214262198,1.78901249,4633.3,4633.2,3.699]
[1758214266209,1.78901249,4633.3,4633.2,4.0818]
[1758214266415,0.94451249,4633.3,4633.2,4.0818]
[1758214266714,0.72251249,4633.3,4633.2,4.0818]
[1758214271219,0.5067269,4633.3,4633.2,4.0818]
[1758214271421,0.72271748,4633.3,4633.2,4.0818]
[1758214271719,0.8764269,4633.3,4633.2,4.0818]
[1758214272109,1.10143906,4633.3,4633.2,4.0818]
[1758214272708,0.73173906,4633.3,4633.2,4.0818]
[1758214273722,1.10143906,4633.3,4633.2,4.0818]
[1758214274922,1.34193906,4633.3,4633.2,4.0818]
[1758214277723,1.58233906,4633.3,4633.2,3.699]
[1758214277924,1.58233906,4633.3,4633.2,3.4654]
[1758214278123,1.58233906,4633.3,4633.2,3.2078]
[1758214278321,1.80433906,4633.3,4633.2,3.2078]
[1758214278522,6.02016907,4633.3,4633.0,0.0215]
[1758214278725,0.2405,4633.1,4633.0,0.0215]
[1758214279025,1.58233906,4633.1,4633.0,0.0215]
[1758214279424,0.4809,4632.8,4632.7,3.2078]
[1758214279630,1.80433906,4632.8,4632.7,3.2078]
[1758214283524,1.80396805,4632.8,4632.7,3.4532]
[1758214283930,1.58196805,4632.8,4632.7,3.4532]
[1758214284130,1.80396805,4632.8,4632.7,3.4532]
[1758214284525,1.80396805,4632.8,4632.7,3.2078]
[1758214286331,1.80396805,4632.8,4632.7,3.4532]
[1758214286531,1.58196805,4632.8,4632.7,3.4532]
[1758214286834,1.80396805,4632.8,4632.7,3.4532]
[1758214287730,1.80396805,4632.8,4632.7,3.2078]
[1758214289429,5.80396805,4632.8,4632.7,3.2078]
[1758214290334,0.8506,4632.3,4632.2,3.2078]
[1758214290531,1.80396805,4632.3,4632.2,3.2078]
[1758214290930,1.80396805,4632.3,4632.2,3.4532]
[1758214293122,1.32306805,4632.3,4632.2,4.0729]
[1758214293327,0.22464115,4632.3,4632.2,8.0729]
[1758214293524,0.222,4632.6,4632.5,0.4823]
[1758214293722,0.3697,4633.6,4633.4,0.4823]
[1758214293932,0.3697,4633.9,4633.5,0.4823]
[1758214294128,0.72871252,4633.8,4633.7,0.6954]
[1758214294637,1.09841252,4633.8,4633.7,0.6954]
[1758214296337,1.33883676,4633.8,4633.7,0.6954]
[1758214297035,1.33883676,4633.8,4633.7,0.4823]
[1758214298333,1.54817046,4635.1,4633.7,0.4823]
[1758214298334,0.5073,4634.5,4633.7,0.6847]
[1758214298537,0.5073,4634.5,4634.0,3.8785]
[1758214298731,35.202,4634.1,4634.0,3.8785]
[1758214298931,35.202,4634.1,4634.0,3.2078]